bitfinex/quotes_BTCUSD_20240729
["timestamp","ask_amount","ask_price","bid_price","bid_amount"]
[1722266650266,0.0641,67901.0,67898.0,0.147278]
[1722266650471,0.0641,67901.0,67890.0,0.294593]
[1722266650677,0.07354355,67900.0,67887.0,0.294606]
[1722266650873,0.07154355,67893.0,67887.0,0.14309939]
[1722266651136,0.07154355,67893.0,67892.0,0.147292]
[1722266651336,0.07154355,67893.0,67880.0,0.1]
[1722266651337,0.1429,67892.0,67870.0,0.3775]
[1722266651544,0.21464294,67893.0,67870.0,0.3775]
[1722266651545,0.57765755,67871.0,67870.0,0.003]
[1722266651749,1.10197977,67871.0,67870.0,0.003]
[1722266651950,0.002,67866.0,67850.0,0.294766]
[1722266652301,0.002,67866.0,67844.0,0.000924]
[1722266652302,0.22764622,67865.0,67844.0,0.000924]
[1722266652544,0.46447693,67865.0,67845.0,0.294788]
[1722266652779,0.23893027,67865.0,67858.0,0.147366]
[1722266652892,0.07154355,67859.0,67844.0,0.000924]
[1722266653258,0.07154355,67852.0,67845.0,0.14309939]
[1722266653482,0.07154355,67852.0,67851.0,0.147381]
[1722266653615,0.08467453,67864.0,67846.0,0.1]
[1722266653616,0.002,67863.0,67848.0,0.294775]
[1722266653817,0.02312443,67851.0,67850.0,0.44215]
[1722266654015,0.07154355,67857.0,67855.0,0.147372]
[1722266654423,0.07154355,67857.0,67856.0,0.14737]
[1722266654623,0.02312343,67857.0,67852.0,0.294755]
[1722266654824,0.07154355,67856.0,67852.0,0.147378]
[1722266655137,0.1103895,67865.0,67860.0,0.147361]
[1722266655138,0.07154355,67863.0,67860.0,0.147361]
[1722266655337,0.07154355,67863.0,67859.0,0.294728]
[1722266655567,0.07154355,67863.0,67853.0,0.16322517]
[1722266655899,0.07154355,67863.0,67862.0,0.147357]
[1722266656023,0.07154355,67863.0,67862.0,0.442072]
[1722266656224,0.07154355,67863.0,67862.0,0.0736799]
[1722266656499,0.07154355,67863.0,67862.0,0.5157519]
[1722266656693,0.0664,67865.0,67853.0,0.16322517]
[1722266656694,0.07154355,67864.0,67853.0,0.02012578]
[1722266656944,0.07154355,67864.0,67844.0,0.000924]
[1722266656945,0.07154355,67854.0,67844.0,0.000924]
[1722266657142,0.07154355,67854.0,67853.0,0.003]
[1722266657747,0.04399885,67862.0,67853.0,0.44085339]
[1722266657748,0.04599885,67862.0,67853.0,0.44085339]
[1722266657967,0.07154355,67857.0,67855.0,0.147373]
[1722266658151,0.07154355,67857.0,67856.0,0.442111]
[1722266658357,0.07154355,67857.0,67856.0,0.06852104]
[1722266658556,0.07154355,67857.0,67851.0,0.1]
[1722266658962,0.07154355,67857.0,67848.0,0.1]
[1722266659310,0.07154355,67857.0,67848.0,0.147388]
[1722266659311,0.07154355,67849.0,67848.0,0.147388]
[1722266659437,0.07154355,67849.0,67848.0,0.247388]
[1722266659863,0.21104355,67849.0,67844.0,0.000924]
[1722266660278,0.09990116,67848.0,67844.0,0.000924]
[1722266660450,0.0439811,67846.0,67844.0,0.000924]
[1722266661041,0.002,67845.0,67844.0,0.000924]
[1722266661911,0.07936291,67845.0,67844.0,0.000924]
[1722266662060,0.002,67845.0,67844.0,0.000924]
[1722266663961,0.02312755,67845.0,67844.0,0.000924]
[1722266664164,0.0459811,67846.0,67844.0,0.000924]
[1722266664365,0.14309939,67845.0,67844.0,0.000924]
[1722266664527,0.29049339,67845.0,67844.0,0.009924]
[1722266664727,0.0769426,67845.0,67844.0,0.009924]
[1722266664890,0.0789426,67845.0,67844.0,0.000924]
[1722266665285,0.002,67845.0,67844.0,0.000924]
[1722266665768,0.21104355,67849.0,67837.0,0.006143]
[1722266665769,0.002,67839.0,67837.0,0.006143]
[1722266665975,0.0015542,67844.0,67837.0,0.006143]
[1722266665976,0.07354355,67838.0,67837.0,0.006143]
[1722266666508,0.13514355,67838.0,67837.0,0.006143]
[1722266666917,0.13314355,67838.0,67837.0,0.006143]
[1722266667378,0.07154355,67838.0,67837.0,0.153555]
[1722266667529,0.0015542,67848.0,67837.0,0.05913195]
[1722266667530,0.0035542,67848.0,67837.0,0.05913195]
[1722266667776,0.07154355,67840.0,67837.0,0.006143]
[1722266668052,0.0015542,67839.0,67837.0,0.006143]
[1722266668398,0.0015542,67839.0,67837.0,0.036543]
[1722266668600,0.002,67838.0,67837.0,0.036543]
[1722266669344,0.07154355,67840.0,67837.0,0.036543]
[1722266669546,0.002,67838.0,67837.0,0.036543]
[1722266670263,0.02512871,67838.0,67837.0,0.036543]
[1722266671167,0.07154355,67840.0,67837.0,0.036543]
[1722266671168,0.07354355,67840.0,67837.0,0.036543]
[1722266671473,0.0035542,67839.0,67838.0,0.05208182]
[1722266671641,0.0015542,67839.0,67838.0,0.05208182]
[1722266671847,0.0015542,67839.0,67838.0,0.49431182]
[1722266672094,0.002,67844.0,67838.0,0.05208182]
[1722266672294,0.0015542,67843.0,67837.0,0.036543]
[1722266672546,0.002,67844.0,67838.0,0.147409]
[1722266672785,0.0015542,67841.0,67837.0,0.036543]
[1722266673036,0.0015542,67841.0,67837.0,0.037543]
[1722266673225,0.0015542,67841.0,67832.0,0.147422]
[1722266673566,0.0015542,67841.0,67822.0,0.294887]
[1722266673567,0.002,67837.0,67833.0,0.1621612]
[1722266673681,0.002,67838.0,67833.0,0.0147422]
[1722266673882,0.002,67837.0,67833.0,0.0147422]
[1722266674195,0.002,67840.0,67833.0,0.3095812]
[1722266674405,0.002,67840.0,67833.0,0.3095822]
[1722266674603,0.002,67840.0,67834.0,0.06044322]
[1722266674801,0.0010617,67848.0,67834.0,0.20354261]
[1722266675062,0.14734355,67849.0,67842.0,0.1474]
[1722266675248,0.002,67848.0,67840.0,0.29481]
[1722266675546,0.002,67848.0,67835.0,0.14604722]
[1722266675547,0.004,67844.0,67841.0,0.029481]
[1722266675977,0.004,67844.0,67843.0,0.147399]
[1722266676169,0.002,67851.0,67843.0,0.00294757]
[1722266676368,0.002,67851.0,67846.0,0.294784]
[1722266676568,0.0651,67856.0,67849.0,0.147385]
[1722266676569,0.002,67850.0,67849.0,0.147385]
[1722266677016,0.002,67850.0,67849.0,0.140385]
[1722266677321,0.0651,67856.0,67844.0,0.32686366]
[1722266677322,0.002,67851.0,67844.0,0.03207066]
[1722266677472,0.002,67851.0,67850.0,0.147383]
[1722266677669,0.002,67851.0,67850.0,0.20782622]
[1722266677853,0.002,67851.0,67850.0,0.06044322]
[1722266678254,0.002,67848.0,67847.0,0.14739]
[1722266678456,0.002,67848.0,67847.0,0.44217]
[1722266678679,0.002,67848.0,67844.0,0.32686166]
[1722266678680,0.002,67846.0,67845.0,0.147394]
[1722266678839,0.002,67848.0,67844.0,0.3368042]
[1722266679072,0.002,67848.0,67847.0,0.44217]
[1722266679274,0.002,67848.0,67847.0,0.07789742]
[1722266679640,0.0651,67856.0,67844.0,0.00994154]
[1722266679641,0.002,67845.0,67844.0,0.00994154]
[1722266679833,0.002,67845.0,67841.0,0.14309939]
[1722266679834,0.002,67844.0,67843.0,0.147399]
[1722266679991,0.07154355,67845.0,67837.0,0.011]
[1722266679992,0.002,67839.0,67837.0,0.011]
[1722266680190,0.07154355,67838.0,67837.0,0.158412]
[1722266680536,0.07154355,67845.0,67837.0,0.158412]
[1722266680537,0.002,67841.0,67840.0,0.147405]
[1722266680762,0.07154355,67845.0,67841.0,0.147402]
[1722266680763,0.002,67844.0,67841.0,0.147402]
[1722266680966,0.002,67842.0,67839.0,0.147406]
[1722266681103,0.002,67842.0,67840.0,0.22213962]
[1722266681304,0.07154355,67845.0,67837.0,0.01029317]
[1722266681305,0.002,67841.0,67837.0,0.01029317]
[1722266681504,0.07154355,67845.0,67836.0,0.294825]
[1722266681709,0.07154355,67838.0,67837.0,0.442234]
[1722266682107,0.07154355,67838.0,67837.0,0.452234]
[1722266682334,0.07154355,67838.0,67837.0,0.82276069]
[1722266683150,0.07154355,67838.0,67837.0,0.52793669]
[1722266683348,0.07154355,67845.0,67837.0,0.52793669]
[1722266683349,0.07154355,67845.0,67837.0,0.08570269]
[1722266683554,0.07154355,67845.0,67843.0,0.147398]
[1722266683891,0.07154355,67845.0,67844.0,0.147396]
[1722266684006,0.0015542,67849.0,67837.0,0.01]
[1722266684208,0.07154355,67838.0,67837.0,0.452236]
[1722266684408,0.07154355,67845.0,67837.0,0.08570339]
[1722266684618,0.07154355,67845.0,67843.0,0.147399]
[1722266685057,0.07154355,67845.0,67837.0,0.01]
[1722266685304,0.07154355,67845.0,67844.0,0.442189]
[1722266685674,0.07154355,67845.0,67844.0,1.23397439]
[1722266685675,0.02312621,67845.0,67844.0,1.23397439]
[1722266685843,0.0015542,67855.0,67844.0,1.23397439]
[1722266685844,0.0645,67864.0,67854.0,0.29475]
[1722266686044,0.11545474,67878.0,67844.0,0.59799239]
[1722266686045,0.07154355,67870.0,67868.0,0.147344]
[1722266686312,0.635,67871.0,67868.0,0.442033]
[1722266686692,0.07154355,67870.0,67868.0,0.442033]
[1722266686906,0.635,67871.0,67868.0,0.442033]
[1722266686907,0.635,67871.0,67868.0,0.87982139]
[1722266687130,0.635,67871.0,67868.0,1.17451039]
[1722266687941,0.635,67871.0,67868.0,1.17551039]
[1722266687942,0.00284,67869.0,67868.0,1.17551039]
[1722266688219,0.00284,67869.0,67868.0,1.36803027]
[1722266688563,0.00084,67869.0,67868.0,1.36703027]
[1722266688787,0.02395571,67869.0,67868.0,1.71171927]
[1722266689004,0.02395571,67869.0,67868.0,1.36703027]
[1722266689460,0.00084,67869.0,67868.0,1.36703027]
[1722266689667,0.00084,67869.0,67868.0,1.37970938]
[1722266691471,0.58584,67871.0,67870.0,1.079383]
[1722266691636,0.58584,67871.0,67870.0,1.43315739]
[1722266691836,0.58584,67871.0,67870.0,2.15651939]
[1722266692253,0.58584,67871.0,67870.0,2.20651939]
[1722266692460,0.58584,67871.0,67870.0,1.81183839]
[1722266692665,0.60895272,67871.0,67870.0,1.81183839]
[1722266693079,0.58584,67871.0,67870.0,2.20651939]
[1722266693229,0.58584,67871.0,67870.0,1.91183839]
[1722266693433,0.58584,67871.0,67870.0,1.86183839]
[1722266693737,0.58584,67871.0,67870.0,1.76183839]
[1722266693940,0.58584,67871.0,67870.0,1.73883839]
[1722266694181,0.58584,67871.0,67870.0,1.86183839]
[1722266694609,0.53983095,67871.0,67870.0,2.15651939]
[1722266694808,0.485651,67871.0,67870.0,2.20651939]
[1722266695340,0.45259032,67871.0,67870.0,2.20651939]
[1722266695491,0.40754833,67871.0,67870.0,2.20651939]
[1722266695697,0.29849707,67871.0,67870.0,2.20651939]
[1722266696108,0.28019707,67871.0,67870.0,2.20651939]
[1722266696311,0.18508782,67871.0,67870.0,2.30651939]
[1722266696574,0.02926782,67871.0,67870.0,2.30651939]
[1722266696754,0.13244355,67900.0,67870.0,2.30651939]
[1722266696755,0.07154355,67900.0,67899.0,0.147277]
[1722266696958,0.0015542,67911.0,67905.0,0.736322]
[1722266697127,0.07154355,67915.0,67905.0,1.46847939]
[1722266697758,0.07154355,67915.0,67905.0,1.56847939]
[1722266697955,0.07154355,67915.0,67905.0,1.27395039]
[1722266698160,0.07154355,67915.0,67905.0,1.34674257]
[1722266698335,0.002,67909.0,67905.0,0.21589157]
[1722266698711,0.14324,67906.0,67905.0,0.07279218]
[1722266698988,0.14324,67906.0,67904.0,0.01279799]
[1722266699138,0.0015542,67905.0,67904.0,0.16006399]
[1722266699341,0.0015542,67905.0,67904.0,0.441799]
[1722266699556,0.0015542,67905.0,67904.0,0.63230809]
[1722266699756,0.0015542,67905.0,67904.0,0.92684109]
[1722266699957,0.06334,67906.0,67905.0,0.441793]
[1722266700183,0.06334,67906.0,67905.0,0.87942139]
[1722266700349,0.06334,67906.0,67905.0,0.58489239]
[1722266700539,0.00084,67906.0,67905.0,0.63974987]
[1722266700739,0.00084,67906.0,67905.0,0.34522087]
[1722266700944,0.00284,67906.0,67905.0,0.05485748]
[1722266701146,0.00084,67906.0,67905.0,0.441793]
[1722266702002,0.00084,67906.0,67904.0,0.0474097]
[1722266702202,0.00084,67906.0,67899.0,0.01257032]
[1722266702203,0.0015542,67905.0,67899.0,0.01257032]
[1722266702357,0.07154355,67900.0,67899.0,0.15984732]
[1722266702556,0.07154355,67900.0,67899.0,0.441832]
[1722266702759,0.07154355,67900.0,67884.0,0.05]
[1722266702760,0.062,67899.0,67898.0,0.01286032]
[1722266702962,0.002,67888.0,67869.0,0.1407]
[1722266703163,0.07154355,67872.0,67871.0,0.442014]
[1722266703364,0.07154355,67872.0,67871.0,1.17446539]
[1722266703566,0.07154355,67879.0,67878.0,0.736615]
[1722266703773,0.07154355,67879.0,67870.0,0.01407]
[1722266703997,0.07154355,67871.0,67870.0,0.736702]
[1722266704213,0.0015542,67878.0,67877.0,0.441975]
[1722266704361,0.0015542,67878.0,67877.0,0.736625]
[1722266704566,0.0015542,67878.0,67877.0,0.441975]
[1722266704767,0.0015542,67878.0,67877.0,0.0736642]
[1722266704993,0.0015542,67878.0,67877.0,0.87972439]
[1722266705167,0.07154355,67879.0,67878.0,0.441969]
[1722266705386,0.07154355,67879.0,67878.0,0.87971439]
[1722266705584,0.07154355,67886.0,67878.0,0.87971439]
[1722266705585,0.07154355,67886.0,67885.0,0.147307]
[1722266705791,0.07154355,67886.0,67880.0,0.147317]
[1722266706035,0.07154355,67886.0,67870.0,0.308676]
[1722266706036,0.002,67884.0,67881.0,0.02904164]
[1722266706437,0.002,67876.0,67870.0,0.014]
[1722266706641,0.07154355,67872.0,67871.0,0.14309939]
[1722266706876,0.07354355,67872.0,67871.0,0.29043739]
[1722266707116,0.07154355,67872.0,67871.0,0.20428785]
[1722266707320,0.07154355,67872.0,67870.0,0.014]
[1722266707321,0.002,67871.0,67870.0,0.014]
[1722266707738,0.0035542,67871.0,67870.0,0.014]
[1722266707934,0.4455682,67871.0,67870.0,0.014]
[1722266708137,0.73526759,67871.0,67870.0,0.014]
[1722266708378,1.32461959,67871.0,67870.0,0.014]
[1722266708591,1.02838939,67871.0,67870.0,0.014]
[1722266708741,1.32306539,67871.0,67870.0,0.014]
[1722266709327,1.41430764,67871.0,67870.0,0.014]
[1722266709529,1.41430764,67871.0,67844.0,0.000924]
[1722266709530,0.002,67850.0,67844.0,0.000924]
[1722266709734,0.1915,67870.0,67844.0,0.000924]
[1722266709735,0.07154355,67845.0,67844.0,0.000924]
[1722266710144,0.07354355,67845.0,67844.0,0.000924]
[1722266710358,0.07354355,67845.0,67844.0,0.0170608]
[1722266710942,0.002,67846.0,67844.0,0.000924]
[1722266711124,0.07154355,67845.0,67844.0,0.000924]
[1722266711328,0.0792,67848.0,67847.0,0.14739]
[1722266711542,0.002,67852.0,67844.0,0.14402339]
[1722266711896,0.002,67852.0,67851.0,0.147381]
[1722266712104,0.002,67852.0,67851.0,0.0442158]
[1722266712312,0.002,67852.0,67851.0,0.147381]
[1722266712517,0.002,67852.0,67845.0,0.14309939]
[1722266712723,0.07354355,67850.0,67845.0,0.14309939]
[1722266712940,0.002,67853.0,67852.0,0.147379]
[1722266713147,0.002,67853.0,67852.0,0.0147379]
[1722266713274,0.002,67853.0,67845.0,0.14309939]
[1722266713275,0.002,67852.0,67847.0,0.29478]
[1722266713477,0.07154355,67851.0,67850.0,0.147383]
[1722266713681,0.07154355,67851.0,67850.0,0.44215]
[1722266713973,0.07154355,67851.0,67848.0,0.14309939]
[1722266714336,0.07154355,67851.0,67849.0,0.147384]
[1722266714556,0.07154355,67851.0,67850.0,0.05852684]
[1722266715796,0.07354355,67851.0,67850.0,0.05852684]
[1722266716218,0.002,67846.0,67845.0,0.01]
[1722266718507,0.002,67846.0,67844.0,0.000924]
[1722266718721,0.002,67848.0,67844.0,0.000924]
[1722266719137,0.02312605,67846.0,67844.0,0.000924]
[1722266719347,0.02312605,67846.0,67845.0,0.191707]
[1722266719913,0.02312605,67846.0,67845.0,0.486496]
[1722266720316,0.1392,67856.0,67847.0,0.29478]
[1722266720317,0.002,67854.0,67847.0,0.29478]
[1722266720541,0.07154355,67852.0,67848.0,0.14309939]
[1722266720744,0.07154355,67852.0,67845.0,0.044313]
[1722266720745,0.07154355,67852.0,67849.0,0.04831164]
[1722266720948,0.07154355,67852.0,67845.0,0.044313]
[1722266720949,0.002,67850.0,67845.0,0.044313]
[1722266721162,0.002,67850.0,67844.0,0.000924]
[1722266721365,0.07354355,67845.0,67844.0,0.000924]
[1722266721803,0.002,67848.0,67845.0,0.147394]
[1722266722008,0.002,67848.0,67844.0,0.000924]
[1722266722234,0.002,67850.0,67846.0,0.147391]
[1722266722454,0.002,67850.0,67847.0,0.14739]
[1722266722858,0.1392,67856.0,67847.0,0.14309939]
[1722266723078,0.0637,67856.0,67849.0,0.294771]
[1722266723307,0.0637,67856.0,67848.0,0.14304939]
[1722266723308,0.07154355,67852.0,67848.0,0.14304939]
[1722266723521,0.07154355,67852.0,67849.0,0.050082]
[1722266723830,0.0231244,67850.0,67849.0,0.050082]
[1722266724033,0.0231244,67850.0,67845.0,0.147394]
[1722266724212,0.0231244,67850.0,67844.0,0.003924]
[1722266724213,0.0231244,67850.0,67846.0,0.147392]
[1722266724471,0.0231244,67850.0,67844.0,0.15132]
[1722266724664,0.002,67846.0,67845.0,0.147394]
[1722266724891,0.002,67846.0,67845.0,0.51755859]
[1722266725082,0.002,67846.0,67845.0,0.22276959]
[1722266725281,0.002,67846.0,67845.0,0.07537559]
[1722266725480,0.002,67846.0,67844.0,0.003924]
[1722266725679,0.002,67852.0,67845.0,0.294789]
[1722266725916,0.001,67846.0,67845.0,0.745972]
[1722266726113,0.001,67846.0,67845.0,0.451183]
[1722266726653,0.002,67848.0,67846.0,0.147392]
[1722266726872,0.002,67850.0,67848.0,0.147386]
[1722266727072,0.002,67852.0,67849.0,0.294772]
[1722266727322,0.002,67852.0,67847.0,0.08968333]
[1722266727323,0.07154355,67851.0,67850.0,0.147382]
[1722266727692,0.07154355,67851.0,67848.0,0.03231155]
[1722266727904,0.002,67850.0,67848.0,0.17969955]
[1722266728120,0.002,67850.0,67848.0,0.03231155]
[1722266728313,0.002,67850.0,67849.0,0.03377239]
[1722266729526,0.07154355,67851.0,67845.0,0.011]
[1722266729527,0.075,67847.0,67845.0,0.011]
[1722266729725,0.002,67846.0,67845.0,0.011]
[1722266731693,0.02512573,67846.0,67845.0,0.011]
[1722266731928,0.002,67846.0,67845.0,0.011]
[1722266732277,0.001,67846.0,67845.0,0.011]
[1722266733526,0.075,67847.0,67845.0,0.011]
[1722266735123,0.001,67846.0,67845.0,0.019]
[1722266735509,0.001,67846.0,67845.0,0.008]
[1722266735692,0.09104744,67846.0,67845.0,0.008]
[1722266735835,0.09004744,67846.0,67844.0,0.000924]
[1722266736229,0.075,67847.0,67845.0,0.01611671]
[1722266736439,0.09464229,67846.0,67845.0,0.01611671]
[1722266736606,0.09464229,67846.0,67844.0,0.000924]
[1722266736607,0.02312694,67846.0,67844.0,0.000924]
[1722266736841,0.02312694,67846.0,67845.0,0.59228239]
[1722266737027,0.001,67847.0,67846.0,0.147392]
[1722266737431,0.09642822,67847.0,67846.0,0.147392]
[1722266737621,0.09642822,67847.0,67846.0,0.08880074]
[1722266737780,0.1640271,67847.0,67846.0,0.08880074]
[1722266738166,0.1640271,67847.0,67845.0,0.307]
[1722266738413,0.23457065,67846.0,67845.0,0.307]
[1722266739583,0.23457065,67846.0,67845.0,0.3]
[1722266739584,0.37517065,67846.0,67845.0,0.3]
[1722266739782,0.52256265,67846.0,67845.0,0.3]
[1722266739982,0.52156265,67846.0,67845.0,0.3]
[1722266740190,0.81634765,67846.0,67845.0,0.3]
[1722266740394,0.83943112,67846.0,67845.0,0.3]
[1722266740597,0.83836873,67846.0,67845.0,0.3]
[1722266741543,0.83936873,67846.0,67845.0,0.31]
[1722266741954,0.39719173,67846.0,67845.0,0.31]
[1722266742141,0.39719173,67846.0,67845.0,0.3410924]
[1722266742142,0.83936873,67846.0,67845.0,0.3410924]
[1722266742350,1.13415373,67846.0,67845.0,0.3410924]
[1722266742725,0.83936873,67846.0,67845.0,0.3410924]
[1722266742933,1.08056737,67846.0,67845.0,0.31]
[1722266743132,1.37535237,67846.0,67845.0,0.31]
[1722266743312,0.98246812,67846.0,67845.0,0.31]
[1722266743510,0.98246812,67846.0,67845.0,0.312]
[1722266743906,1.00411194,67846.0,67845.0,0.3432924]
[1722266744314,1.00411194,67846.0,67845.0,0.3412924]
[1722266744508,0.348292,67846.0,67845.0,0.3412924]
[1722266744688,0.790469,67846.0,67845.0,0.3412924]
[1722266744918,0.32516416,67846.0,67845.0,0.3412924]
[1722266745136,0.47155616,67846.0,67845.0,0.3312924]
[1722266745728,0.32516416,67846.0,67845.0,0.3392924]
[1722266746335,0.47255616,67846.0,67845.0,0.3392924]
[1722266746538,0.32516416,67846.0,67845.0,0.3392924]
[1722266746698,0.26011169,67846.0,67845.0,0.3392924]
[1722266746896,0.3253734,67846.0,67845.0,0.3312924]
[1722266748423,0.2450734,67846.0,67845.0,0.3312924]
[1722266748630,0.16168993,67846.0,67845.0,0.4786864]
[1722266748852,0.09542822,67846.0,67845.0,0.4786864]
[1722266749284,0.09542822,67846.0,67845.0,0.7734754]
[1722266749612,0.09542822,67846.0,67845.0,0.3312924]
[1722266749613,0.17093323,67846.0,67845.0,0.3312924]
[1722266749963,0.1425454,67846.0,67845.0,0.3312924]
[1722266750127,0.26105522,67846.0,67845.0,0.3312924]
[1722266751104,0.30515948,67846.0,67845.0,0.3312924]
[1722266751260,0.32717411,67846.0,67845.0,0.3312924]
[1722266751467,0.26105522,67846.0,67845.0,0.3312924]
[1722266751673,0.34921374,67846.0,67845.0,0.3312924]
[1722266752036,0.26105522,67846.0,67845.0,0.3322924]
[1722266752251,0.32725304,67846.0,67845.0,0.3322924]
[1722266752427,0.26105522,67846.0,67845.0,0.3322924]
[1722266752616,0.351384,67846.0,67845.0,0.3322924]
[1722266753172,0.26295047,67846.0,67845.0,0.3322924]
[1722266753609,0.32922848,67846.0,67845.0,0.3322924]
[1722266754397,0.28590762,67846.0,67845.0,0.3322924]
[1722266754614,0.37423271,67846.0,67845.0,0.3322924]
[1722266755027,0.35110644,67846.0,67845.0,0.3322924]
[1722266755488,0.34910644,67846.0,67845.0,0.3322924]
[1722266756280,0.34465575,67846.0,67845.0,0.3322924]
[1722266756426,0.36675246,67846.0,67845.0,0.3322924]
[1722266756625,0.36300399,67846.0,67845.0,0.3312924]
[1722266756877,0.25251226,67846.0,67845.0,0.3312924]
[1722266757331,0.70885625,67846.0,67845.0,0.3]
[1722266757742,0.84143647,67846.0,67845.0,0.3]
[1722266757910,0.54666797,67846.0,67845.0,0.3]
[1722266758112,0.70885625,67846.0,67845.0,0.3]
[1722266758318,1.30446611,67846.0,67845.0,0.3]
[1722266758544,0.95798327,67846.0,67845.0,0.3]
[1722266758967,1.39796025,67846.0,67845.0,0.3]
[1722266759179,1.54714115,67846.0,67845.0,0.3]
[1722266759318,1.36637597,67846.0,67845.0,0.3]
[1722266759525,1.52098693,67846.0,67845.0,0.3]
[1722266760236,1.07704785,67846.0,67845.0,0.3300924]
[1722266760650,1.52098693,67846.0,67845.0,0.3300924]
[1722266761060,1.37183285,67846.0,67845.0,0.3300924]
[1722266761264,1.37183285,67846.0,67845.0,0.3]
[1722266761265,0.58487085,67846.0,67845.0,0.3]
[1722266761465,0.7340239,67846.0,67845.0,0.3]
[1722266761979,1.4709859,67846.0,67845.0,0.3]
[1722266762126,1.32183285,67846.0,67845.0,0.3]
[1722266762372,0.60800046,67846.0,67845.0,0.3300924]
[1722266762737,0.60800046,67846.0,67820.0,0.05]
[1722266762738,0.077,67822.0,67799.0,0.059088]
[1722266762902,0.077,67822.0,67812.0,0.42926131]
[1722266762903,0.07154355,67816.0,67812.0,0.42926131]
[1722266763099,0.07154355,67816.0,67804.0,0.01253925]
[1722266763100,0.20335901,67815.0,67804.0,0.16002225]
[1722266763303,0.21464294,67816.0,67804.0,0.01253925]
[1722266763304,0.20335901,67814.0,67804.0,0.01253925]
[1722266763503,0.14919822,67813.0,67804.0,0.01253925]
[1722266763663,0.06624637,67811.0,67800.0,1.12449598]
[1722266763870,0.11561126,67811.0,67805.0,0.294963]
[1722266764116,0.0989705,67811.0,67810.0,0.78052817]
[1722266764318,0.05480827,67811.0,67810.0,0.78052817]
[1722266764519,0.05833767,67812.0,67811.0,0.212768]
[1722266764692,0.05714292,67812.0,67811.0,0.507705]
[1722266764892,0.04416223,67819.0,67811.0,0.212768]
[1722266764893,0.05765574,67818.0,67811.0,0.212768]
[1722266765097,0.17509404,67828.0,67811.0,0.212768]
[1722266765098,0.05765574,67817.0,67816.0,0.737287]
[1722266765331,0.18749404,67829.0,67816.0,0.737287]
[1722266765332,0.04416223,67822.0,67818.0,0.294906]
[1722266765512,0.077,67836.0,67820.0,0.442347]
[1722266765513,0.05904343,67821.0,67820.0,0.442347]
[1722266765713,0.06620636,67826.0,67820.0,0.442347]
[1722266765714,0.04413102,67831.0,67830.0,0.442281]
[1722266766000,0.1598056,67837.0,67832.0,0.442269]
[1722266766001,0.04413102,67833.0,67832.0,0.442269]
[1722266766216,0.08826205,67840.0,67836.0,0.0653]
[1722266766217,0.04413102,67840.0,67836.0,0.0653]
[1722266766376,0.01484,67846.0,67845.0,0.147394]
[1722266766711,0.11436444,67846.0,67845.0,1.031761]
[1722266766881,0.11436444,67846.0,67845.0,1.26576432]
[1722266767035,0.11436444,67846.0,67845.0,1.33723385]
[1722266767250,0.13748796,67846.0,67845.0,1.33723385]
[1722266767854,0.13748796,67846.0,67845.0,0.60455646]
[1722266768054,0.13748796,67846.0,67845.0,0.58995253]
[1722266768379,0.13748796,67846.0,67845.0,1.32262992]
[1722266768573,0.13748796,67846.0,67845.0,1.37262992]
[1722266768898,0.13748796,67846.0,67833.0,0.294838]
[1722266769097,0.13748796,67846.0,67833.0,0.14742]
[1722266769098,0.07154355,67834.0,67833.0,0.14742]
[1722266769320,0.044111,67840.0,67839.0,0.147407]
[1722266769596,0.07154355,67840.0,67839.0,0.442222]
[1722266769831,0.16220959,67840.0,67839.0,0.79556914]
[1722266770035,0.18533801,67840.0,67839.0,0.79556914]
[1722266770769,0.02312842,67840.0,67839.0,1.28348353]
[1722266771173,0.02312842,67840.0,67839.0,0.79556914]
[1722266771548,0.02312842,67840.0,67839.0,0.50075414]
[1722266771895,0.02312842,67840.0,67839.0,0.79556914]
[1722266773295,0.02312842,67840.0,67839.0,1.28348353]
[1722266773425,0.02312842,67840.0,67839.0,1.28548353]
[1722266773640,0.02312842,67840.0,67839.0,1.23348353]
[1722266774053,0.00084,67846.0,67845.0,0.736972]
[1722266774350,0.07203578,67846.0,67845.0,1.09522374]
[1722266774913,0.07203578,67846.0,67845.0,1.43022313]
[1722266775072,0.07203578,67846.0,67845.0,1.72501213]
[1722266775276,0.00084,67846.0,67845.0,2.22180113]
[1722266775456,0.0015542,67856.0,67855.0,1.081611]
[1722266775655,0.04411832,67870.0,67860.0,0.05]
[1722266775857,0.07875698,67869.0,67868.0,0.557933]
[1722266776057,0.08823665,67878.0,67870.0,0.05]
[1722266776058,0.04411832,67878.0,67870.0,0.05]
[1722266776424,0.11029581,67884.0,67870.0,0.05]
[1722266776425,0.04411832,67883.0,67881.0,0.294633]
[1722266776602,0.08823665,67887.0,67871.0,0.14309939]
[1722266776603,0.04404585,67887.0,67886.0,0.294611]
[1722266776913,0.08767562,67887.0,67886.0,0.04377104]
[1722266777048,0.08767562,67887.0,67868.0,0.0659]
[1722266777289,0.07154355,67880.0,67879.0,0.441961]
[1722266777653,0.04404585,67885.0,67884.0,0.14731]
[1722266777654,0.07154355,67885.0,67884.0,0.14731]
[1722266777992,0.07154355,67885.0,67884.0,0.44193]
[1722266778213,0.1534174,67885.0,67884.0,0.486123]
[1722266778427,0.1534174,67885.0,67884.0,0.191503]
[1722266778630,0.1534174,67885.0,67884.0,0.780743]
[1722266779077,0.07154355,67885.0,67884.0,0.780743]
[1722266779296,0.07154355,67893.0,67884.0,0.044193]
[1722266779457,0.07154355,67893.0,67892.0,0.147292]
[1722266779854,0.07154355,67893.0,67890.0,0.294593]
[1722266780054,0.07154355,67893.0,67892.0,0.147292]
[1722266780277,0.07154355,67900.0,67899.0,0.441832]
[1722266780671,0.16254804,67900.0,67899.0,0.441832]
[1722266780823,0.0083,67907.0,67905.0,0.441793]
[1722266781038,0.09966793,67906.0,67905.0,0.147264]
[1722266781407,0.09966793,67906.0,67905.0,0.441793]
[1722266781608,0.09966793,67906.0,67903.0,0.294536]
[1722266781725,0.09966793,67906.0,67899.0,0.441832]
[1722266781726,0.07154355,67900.0,67899.0,0.441832]